bitfinex/quotes_ETHUSD_20250511
["timestamp","ask_amount","ask_price","bid_price","bid_amount"]
[1746949977662,8.0,2469.8,2469.4,4.474]
[1746949978697,12.04893913,2469.8,2469.4,4.474]
[1746949979102,4.04893913,2469.8,2469.4,4.474]
[1746949979302,4.04878248,2469.9,2469.4,4.474]
[1746949979991,4.457,2470.0,2469.4,4.474]
[1746949980377,4.457,2470.0,2469.4,4.51449001]
[1746949980584,8.50573559,2470.0,2469.4,4.51449001]
[1746949980811,12.29935365,2469.9,2469.4,4.474]
[1746949981010,4.04940271,2469.5,2469.4,4.474]
[1746949981210,12.04940271,2469.5,2469.4,4.474]
[1746949982214,12.26973169,2469.5,2469.4,4.474]
[1746949982413,12.26972727,2469.5,2469.4,4.474]
[1746949983330,8.22032456,2469.5,2469.4,4.474]
[1746949983626,0.22032456,2469.5,2469.4,4.474]
[1746949983828,4.04935873,2469.6,2469.4,4.474]
[1746949984018,8.49201779,2469.8,2469.4,4.474]
[1746949984191,4.443,2469.8,2469.4,4.474]
[1746949984558,4.05038681,2468.9,2468.8,0.8155]
[1746949984730,4.05055087,2468.8,2468.7,4.474]
[1746949984905,8.0,2469.0,2468.7,4.474]
[1746949985105,4.04995223,2469.2,2468.7,4.474]
[1746949985326,4.04968924,2469.4,2468.8,0.8155]
[1746949985506,4.44,2469.4,2468.8,0.8155]
[1746949985703,4.04963952,2469.4,2468.8,0.8155]
[1746949985907,4.04809132,2470.3,2468.8,0.8155]
[1746949986107,4.04880695,2469.9,2468.8,0.8155]
[1746949986307,4.04884257,2469.9,2469.0,0.8155]
[1746949986625,4.438,2470.4,2469.1,0.04049123]
[1746949986824,4.438,2470.4,2469.2,0.8155]
[1746949986825,4.04850969,2470.1,2469.2,0.8155]
[1746949987050,4.04859266,2470.0,2469.2,0.8155]
[1746949987327,8.0,2470.1,2469.3,0.04048862]
[1746949987532,8.0,2470.2,2469.2,0.8155]
[1746949987694,8.0,2469.7,2469.2,0.8155]
[1746949988024,8.0,2469.9,2469.2,0.8155]
[1746949988190,8.0,2469.6,2468.8,0.8187]
[1746949988408,8.0,2469.2,2468.4,0.8187]
[1746949988600,8.0,2469.0,2468.4,0.8187]
[1746949988840,8.0,2468.7,2468.3,4.474]
[1746949989006,4.433,2468.6,2468.3,4.474]
[1746949989202,4.29935365,2469.3,2468.3,4.474]
[1746949989441,0.832,2469.4,2468.5,0.8187]
[1746949989618,4.05064269,2468.8,2468.5,0.8187]
[1746949989817,12.05003053,2469.2,2468.5,0.8187]
[1746949990032,4.05067759,2468.8,2468.5,0.8187]
[1746949990343,4.05031431,2469.0,2468.5,0.8187]
[1746949990513,12.05005891,2469.1,2468.5,0.8187]
[1746949990712,8.0,2468.9,2468.4,4.474]
[1746949990943,8.22103446,2468.9,2468.4,4.474]
[1746949991730,0.22103446,2468.9,2468.4,4.474]
[1746949992110,4.429,2469.0,2468.4,4.474]
[1746949992505,4.426,2469.1,2468.4,4.474]
[1746949992724,4.426,2469.1,2468.5,0.4474]
[1746949993536,4.426,2469.1,2468.4,4.474]
[1746949993730,4.05022276,2469.0,2468.4,4.474]
[1746949993946,4.05048747,2468.9,2468.4,4.474]
[1746949994151,8.0,2468.8,2468.4,4.474]
[1746949994746,4.426,2469.1,2468.4,4.474]
[1746949994953,8.0,2469.0,2468.4,6.33927]
[1746949996548,4.418,2469.6,2468.5,0.8107]
[1746949996729,4.04996296,2469.2,2468.5,0.8107]
[1746949997130,4.05016883,2469.1,2468.5,0.8107]
[1746949997351,4.04989536,2469.2,2468.5,0.8107]
[1746949997352,4.05022276,2469.0,2468.5,0.8107]
[1746949997519,4.05029623,2469.0,2468.5,0.8107]
[1746949997718,4.416,2469.1,2468.5,0.85120894]
[1746949998114,4.04921485,2469.7,2468.6,0.55]
[1746949998339,4.415,2469.7,2468.7,0.85120222]
[1746949998749,4.415,2469.7,2468.7,0.85119517]
[1746949998920,4.415,2469.7,2468.8,0.55]
[1746949999130,2.51893091,2470.1,2469.1,0.8107]
[1746949999330,4.63456959,2470.0,2469.3,0.8107]
[1746949999532,0.22156959,2470.0,2469.5,0.8107]
[1746949999733,2.51893091,2470.1,2469.6,13.363]
[1746950000558,2.51893091,2470.1,2469.7,0.8107]
[1746950001538,4.412,2470.7,2469.7,0.8107]
[1746950002070,4.04769398,2470.6,2469.7,0.8107]
[1746950002352,4.04769398,2470.6,2469.8,1.41737]
[1746950002656,0.22151171,2470.5,2469.9,0.04048032]
[1746950002860,0.22151171,2470.5,2470.0,4.414]
[1746950003160,4.04802086,2470.4,2470.0,4.414]
[1746950003367,4.0478903,2470.5,2470.0,4.414]
[1746950003567,4.04794584,2470.4,2470.0,4.414]
[1746950003768,4.04841909,2470.1,2470.0,4.414]
[1746950004269,0.30020395,2470.6,2470.0,4.414]
[1746950004439,4.04802522,2470.4,2470.0,4.414]
[1746950004632,8.44981391,2470.5,2470.0,4.414]
[1746950004856,8.0,2470.4,2470.0,4.414]
[1746950005077,4.402,2470.5,2470.0,4.8554]
[1746950005247,8.44978532,2470.5,2470.0,4.8554]
[1746950006276,4.402,2470.5,2470.0,4.8554]
[1746950006445,4.04767273,2470.6,2470.0,4.8554]
[1746950006650,4.29935365,2470.2,2469.7,0.8107]
[1746950006847,0.8105,2470.3,2469.6,13.363]
[1746950007052,12.04776361,2470.5,2469.6,13.363]
[1746950007273,8.0,2470.2,2469.6,13.363]
[1746950007785,0.22101804,2470.4,2469.6,13.363]
[1746950007959,4.04907478,2469.7,2469.6,13.363]
[1746950008679,4.04888106,2469.9,2469.6,13.363]
[1746950008879,4.0489284,2469.8,2469.6,13.363]
[1746950009061,4.04896138,2469.8,2469.6,13.363]
[1746950009262,4.04907478,2469.7,2469.6,13.363]
[1746950009459,4.0482552,2470.2,2469.6,13.363]
[1746950009460,4.04880095,2469.9,2469.6,13.363]
[1746950009786,4.04900149,2469.8,2469.6,13.363]
[1746950010148,8.0,2470.2,2469.6,13.363]
[1746950010348,8.0,2470.3,2469.6,13.363]
[1746950010557,12.04819286,2470.3,2469.6,13.363]
[1746950011049,4.04810754,2470.3,2469.7,0.7804]
[1746950012344,4.04752502,2470.7,2469.9,0.7892]
[1746950012547,4.04776364,2470.5,2469.9,0.7892]
[1746950012748,4.04752502,2470.7,2469.9,0.7892]
[1746950012749,8.0,2470.7,2469.9,0.7892]
[1746950013279,12.04750636,2470.7,2469.9,0.7892]
[1746950013986,8.0,2470.5,2469.9,0.7892]
[1746950014148,8.30039465,2470.7,2469.9,0.7892]
[1746950014350,8.0,2470.7,2469.9,0.7892]
[1746950014560,4.0476839,2470.6,2469.9,0.7892]
[1746950014763,4.04782101,2470.5,2469.9,0.7892]
[1746950014973,12.29935365,2470.7,2469.9,0.7892]
[1746950015163,4.04813326,2470.3,2469.9,0.7892]
[1746950015464,4.04762662,2470.6,2469.9,0.7892]
[1746950015664,4.04781933,2470.5,2470.0,0.04048155]
[1746950015889,8.0,2470.6,2470.1,4.413]
[1746950016089,8.0,2470.6,2470.1,4.93322]
[1746950016463,4.29935365,2471.1,2470.1,4.93322]
[1746950016670,4.04703619,2471.0,2470.2,0.7892]
[1746950016982,0.30637522,2471.0,2470.2,0.7892]
[1746950017297,4.04743478,2470.8,2470.2,0.7892]
[1746950017490,4.04743478,2470.8,2470.3,0.572242]
[1746950017695,8.0,2471.0,2470.2,0.7892]
[1746950017901,4.04753845,2470.7,2470.2,0.7892]
[1746950018055,4.04710834,2470.9,2470.2,0.7892]
[1746950018457,4.373,2471.2,2470.2,0.7892]
[1746950018679,4.04696523,2471.0,2470.2,0.7892]
[1746950018879,4.68325294,2471.2,2470.3,0.52022]
[1746950019193,4.04721731,2470.9,2470.3,0.52022]
[1746950019391,4.04701355,2471.0,2470.3,0.52022]
[1746950019698,8.31025294,2471.2,2470.5,0.8128]
[1746950019885,4.04663617,2471.2,2470.6,0.04046995]
[1746950020198,8.0,2471.2,2470.6,0.04046995]
[1746950020396,4.04636346,2471.4,2470.7,0.8128]
[1746950020604,2.51893091,2471.9,2470.9,0.8128]
[1746950020764,8.41281405,2471.7,2471.0,4.45346232]
[1746950020964,8.41281405,2471.7,2471.0,6.31558855]
[1746950021191,4.04581405,2471.7,2471.0,6.31558855]
[1746950022800,0.30187674,2471.8,2471.1,0.8128]
[1746950022966,4.04649834,2471.3,2471.1,0.8128]
[1746950023299,8.34502531,2471.8,2471.1,0.8128]
[1746950023300,4.04635594,2471.4,2471.1,0.8128]
[1746950023464,4.04646555,2471.3,2471.1,0.8128]
[1746950023662,8.0,2471.7,2471.0,4.413]
[1746950023864,4.04628955,2471.4,2471.0,4.413]
[1746950024070,0.30482055,2471.8,2471.0,4.45346948]
[1746950024396,8.40584851,2471.7,2471.1,0.8128]
[1746950024713,4.04598789,2471.6,2471.2,0.04046048]
[1746950025013,4.04570756,2471.8,2471.2,0.04046048]
[1746950025308,4.04524837,2472.1,2471.3,0.8128]
[1746950025514,4.04524837,2472.1,2471.4,0.04045626]
[1746950025515,8.0,2472.1,2471.4,0.04045626]
[1746950025799,4.0451438,2472.1,2471.5,0.8128]
[1746950026008,4.04504859,2472.2,2471.6,0.04045428]
[1746950026189,4.04554062,2471.9,2471.5,0.8128]
[1746950026386,0.11310602,2472.2,2471.6,0.04045448]
[1746950026576,4.354,2472.6,2471.6,0.8128]
[1746950026776,4.04510324,2472.2,2471.6,0.8128]
[1746950026978,0.29818703,2472.3,2471.6,0.8128]
[1746950027171,4.04529221,2472.1,2471.6,0.8128]
[1746950027512,4.04498017,2472.2,2471.6,0.8128]
[1746950027513,4.04500249,2472.2,2471.6,0.8128]
[1746950027679,4.04521873,2472.1,2471.6,0.8128]
[1746950028005,4.352,2472.5,2471.6,0.8128]
[1746950028006,0.15080803,2472.2,2471.7,0.04045157]
[1746950028214,8.34293203,2473.1,2471.7,0.04045157]
[1746950028215,0.30995797,2473.0,2471.9,0.8128]
[1746950028370,0.00894861,2473.6,2472.1,0.8128]
[1746950028371,0.12689044,2472.2,2472.1,0.8128]
[1746950028575,4.04405748,2472.8,2472.1,14.1628]
[1746950028813,0.08873243,2472.7,2472.1,14.1628]
[1746950029104,0.08873243,2472.7,2472.2,0.04044111]
[1746950029306,4.04387067,2472.9,2472.1,14.1628]
[1746950029511,0.08882361,2472.6,2472.1,15.686318]
[1746950029671,0.02548795,2472.8,2472.2,1.40324243]
[1746950029875,0.02548795,2472.8,2472.2,0.8128]
[1746950030078,0.02548795,2472.8,2472.2,0.85324113]
[1746950030304,0.02548795,2472.8,2472.2,0.65324113]
[1746950030512,0.02548795,2472.8,2472.2,2.25815504]
[1746950030712,8.30889616,2473.2,2472.2,0.6128]
[1746950030873,8.30889616,2473.2,2472.2,0.65323849]
[1746950031073,4.04367165,2473.0,2472.2,0.65323849]
[1746950031397,0.08836776,2473.1,2472.2,0.04043849]
[1746950031596,0.08855008,2472.9,2472.2,0.59043849]
[1746950031817,0.08845891,2473.0,2472.2,2.03672034]
[1746950031990,0.08864125,2472.8,2472.2,2.03672034]
[1746950032310,4.04448938,2472.5,2472.1,17.699]
[1746950032518,4.29935365,2472.6,2472.1,17.699]
[1746950032519,8.38537334,2472.6,2472.1,17.699]
[1746950032708,0.06470695,2472.4,2472.1,17.699]
[1746950032879,4.04454943,2472.5,2472.1,17.699]
[1746950033082,0.06461293,2472.3,2472.1,17.699]
[1746950033283,4.04421805,2472.7,2472.2,0.81914474]
[1746950033493,4.04378338,2473.0,2472.2,0.81914474]
[1746950033727,8.38176496,2473.0,2472.2,0.7787]
[1746950033927,8.38174124,2473.0,2472.2,0.7787]
[1746950034128,4.0438787,2472.9,2472.2,0.7787]
[1746950034433,8.38050814,2473.1,2472.2,0.7787]
[1746950034629,4.04443974,2472.6,2472.2,0.7787]
[1746950034818,4.04419647,2472.7,2472.2,0.7787]
[1746950035135,4.04367165,2473.0,2472.2,0.7787]
[1746950035301,12.337,2473.1,2472.2,0.7787]
[1746950035495,4.04415887,2472.8,2472.2,0.7787]
[1746950036329,4.0446281,2472.5,2472.2,0.7787]
[1746950036540,4.04383517,2472.9,2472.2,0.7787]
[1746950036741,4.04457616,2472.5,2472.2,0.7787]
[1746950037227,4.04466297,2472.4,2472.2,0.7787]
[1746950037432,4.04481656,2472.3,2472.2,0.7787]
[1746950037600,4.04476641,2472.4,2472.2,0.7787]
[1746950037802,4.04481656,2472.3,2472.2,0.7787]
[1746950038410,4.04498017,2472.2,2472.1,17.699]
[1746950038718,4.29935365,2472.6,2472.1,17.699]
[1746950038921,4.04498017,2472.2,2472.1,17.699]
[1746950039838,0.06455925,2472.2,2472.1,17.699]
[1746950040137,4.04486343,2472.3,2472.1,17.699]
[1746950040320,0.06427677,2472.2,2472.1,17.699]
[1746950040501,8.0,2472.7,2472.1,17.699]
[1746950040696,8.36741861,2472.6,2472.1,17.699]
[1746950040906,0.06366439,2472.6,2472.2,0.7756]
[1746950041243,4.04305529,2473.4,2472.4,0.7756]
[1746950041420,4.09865476,2473.3,2472.4,0.7756]
[1746950042140,4.04361192,2473.1,2472.4,0.7756]
[1746950042362,0.05561546,2473.2,2472.5,0.55]
[1746950042644,4.09987718,2473.1,2472.4,0.7756]
[1746950042843,0.05626779,2473.1,2472.5,0.04043774]
[1746950043011,4.04252738,2473.7,2472.4,0.7756]
[1746950043205,8.0857085,2473.5,2472.4,0.7756]
[1746950043409,8.0857085,2473.5,2472.2,0.55]
[1746950043410,4.04285425,2473.5,2472.5,0.753]
[1746950043615,0.7998,2473.9,2472.6,0.753]
[1746950043616,0.05630804,2473.4,2472.6,0.753]
[1746950043839,4.04256535,2473.7,2472.8,0.753]
[1746950044046,0.0560122,2473.6,2472.9,4.38843084]
[1746950044315,0.0560122,2473.6,2472.9,4.90257392]
[1746950044536,5.1168,2473.9,2472.9,4.90257392]
[1746950044537,12.0426346,2473.7,2472.9,4.90257392]
[1746950044716,0.05616012,2473.5,2473.0,0.8006]
[1746950044925,4.04246629,2473.8,2473.1,0.04042908]
[1746950045125,0.05681222,2473.4,2473.0,0.8006]
[1746950045338,8.35522857,2473.9,2473.0,1.36687431]
[1746950045549,0.05696015,2473.3,2473.0,1.36687431]
[1746950045747,4.04256883,2473.7,2473.0,1.36687431]
[1746950045918,0.0571081,2473.2,2473.0,1.36687431]
[1746950046118,4.04241595,2473.8,2473.0,1.36687431]
[1746950046412,0.05725607,2473.1,2473.0,0.8006]
[1746950047163,4.04326806,2473.3,2473.0,0.8006]
[1746950047320,12.04245798,2473.8,2473.0,0.8006]
[1746950047321,0.05725607,2473.1,2473.0,0.8006]
[1746950047651,4.04308726,2473.4,2473.0,0.8006]
[1746950047851,0.05725607,2473.1,2472.9,4.348]
[1746950048053,4.04308232,2473.4,2472.9,4.348]
[1746950048260,0.05760568,2473.0,2472.9,4.86307]
[1746950048458,0.05760568,2473.0,2472.9,4.348]
[1746950048667,0.05760568,2473.0,2472.9,4.38843337]
[1746950049076,12.04271781,2473.6,2472.9,4.348]
[1746950049278,0.05760568,2473.0,2472.9,5.7007]
[1746950049472,4.04253585,2473.7,2473.0,0.55]
[1746950049626,4.04242625,2473.8,2473.0,0.55]
[1746950050333,4.0422331,2473.9,2473.0,0.55]
[1746950050970,4.0420971,2474.0,2473.0,0.55]
[1746950051177,0.7983,2474.3,2473.1,0.8027]
[1746950051459,8.58802405,2474.2,2473.2,0.8027]
[1746950051679,4.04208001,2474.0,2473.2,0.8027]
[1746950051828,4.04324113,2473.3,2472.9,5.1507]
[1746950052028,4.04271719,2473.6,2472.9,5.1507]
[1746950052246,4.04297938,2473.5,2472.9,5.1507]
[1746950052565,4.04298185,2473.5,2473.0,4.347]
[1746950052752,4.04310955,2473.4,2473.0,4.347]
[1746950052953,4.296,2473.9,2473.1,0.04043144]
[1746950053264,8.33828988,2473.9,2473.2,0.7545]
[1746950053468,4.295,2474.1,2473.2,0.7545]
[1746950053763,4.26436713,2474.0,2473.2,0.7545]
[1746950053967,0.22221115,2474.0,2473.2,0.7545]
[1746950054271,16.33458685,2474.3,2473.3,0.04042263]
[1746950054471,0.22248158,2474.2,2473.4,13.34]
[1746950054714,0.06718401,2474.1,2473.6,0.7545]
[1746950054882,0.06718401,2474.1,2473.7,0.59041786]
[1746950055182,0.06718401,2474.1,2473.9,0.7545]
[1746950055335,8.33241844,2475.0,2474.0,0.04041196]
[1746950055527,4.04056729,2474.9,2474.1,0.7545]
[1746950055729,4.04064339,2474.9,2474.2,0.04040973]
[1746950055995,4.26312312,2474.8,2474.2,0.04040973]
[1746950056268,0.22239195,2474.8,2474.3,0.7545]
[1746950056631,4.80905755,2475.6,2474.4,0.55]
[1746950056831,4.04016908,2475.2,2474.4,0.55]
[1746950057034,8.32690352,2475.4,2474.5,0.7545]
[1746950057374,4.287,2475.8,2474.7,0.7545]
[1746950057528,4.287,2475.8,2474.9,0.7972]
[1746950058068,8.32613765,2475.8,2474.9,0.7972]
[1746950058253,4.039303,2475.7,2474.9,0.7972]
[1746950058451,4.03945822,2475.6,2474.9,0.7972]
[1746950058645,4.284,2475.9,2474.9,0.7972]
[1746950058843,4.03969239,2475.5,2474.9,0.7972]
[1746950059071,8.22179714,2475.8,2475.0,0.04039637]
[1746950059234,0.22179714,2475.8,2475.2,0.55]
[1746950059435,0.22179714,2475.8,2475.3,0.7972]
[1746950059637,0.22179714,2475.8,2475.4,4.283]
[1746950059857,4.281,2476.3,2475.4,4.283]
[1746950060051,4.03908212,2475.9,2475.4,4.283]
[1746950060279,4.03847301,2476.2,2475.4,4.79102]
[1746950060484,4.0391035,2475.8,2475.4,4.283]
[1746950060665,4.281,2476.3,2475.3,0.7972]
[1746950060666,4.03896692,2475.9,2475.3,0.7972]
[1746950060867,4.03871015,2476.1,2475.5,4.283]
[1746950061071,4.281,2476.3,2475.5,4.283]
[1746950061400,4.038446,2476.2,2475.5,4.283]
[1746950061561,4.281,2476.3,2475.5,4.283]
[1746950061562,4.277,2476.3,2475.5,4.283]
[1746950061763,4.03928975,2475.7,2475.5,4.283]
[1746950062192,4.03942478,2475.6,2475.5,4.283]
[1746950062705,4.03975115,2475.4,2475.3,0.7972]
[1746950062906,4.03975115,2475.4,2475.3,4.282]
[1746950063714,12.03975115,2475.4,2475.3,4.282]
[1746950064374,12.84745115,2475.4,2475.3,4.282]
[1746950065271,4.04056729,2474.9,2474.8,13.338]
[1746950065869,16.32859134,2474.9,2474.8,13.338]
[1746950066481,17.13829134,2474.9,2474.8,13.338]
[1746950066919,4.281,2476.4,2474.6,4.281]
[1746950066920,0.8097,2475.9,2474.7,0.8085]
[1746950067069,7.5067,2475.9,2474.8,0.04040015]
[1746950067279,4.03961149,2475.5,2474.7,0.8085]
[1746950067479,4.03985735,2475.4,2474.8,4.282]
[1746950067684,4.03985735,2475.4,2474.9,0.50905]
[1746950067885,0.22171611,2475.8,2474.9,0.50905]
[1746950068085,4.03951733,2475.6,2475.0,0.04039979]
[1746950068390,4.039595,2475.5,2475.0,0.04039979]
[1746950068788,4.03978726,2475.4,2475.0,0.04039979]
[1746950069013,4.03978726,2475.4,2474.9,0.50905]
[1746950069324,4.04025304,2475.1,2474.8,4.282]
[1746950069619,8.0,2475.3,2474.8,4.282]
[1746950069828,8.0,2475.3,2474.0,4.282]
[1746950069829,8.0,2474.8,2474.0,4.282]
[1746950070016,4.04168837,2474.3,2474.0,4.282]
[1746950070393,4.04187381,2474.1,2474.0,4.282]
[1746950070594,4.0930793,2474.2,2474.0,4.282]
[1746950070928,0.05144791,2474.1,2474.0,4.282]
[1746950071157,12.04120289,2474.6,2474.0,4.282]
[1746950071158,8.0,2474.5,2474.0,4.282]
[1746950071427,0.05144791,2474.1,2474.0,4.282]
[1746950071624,4.04149636,2474.4,2474.0,4.282]
[1746950071833,0.05144791,2474.1,2474.0,4.282]
[1746950072061,12.04112279,2474.6,2474.0,6.16129577]
[1746950072262,0.05144791,2474.1,2474.0,4.32241577]
[1746950072544,4.257,2474.7,2474.0,4.32241577]
[1746950072748,0.05144791,2474.1,2474.0,4.32241577]
[1746950072950,4.257,2474.7,2474.0,4.32241577]
[1746950073098,0.05144791,2474.1,2474.0,4.32241577]
[1746950073297,4.04128476,2474.5,2474.0,4.282]
[1746950073535,0.05100442,2474.4,2474.0,4.282]
[1746950073697,0.05100442,2474.4,2474.0,4.32241583]
[1746950074100,8.0,2474.6,2474.0,4.32241583]
[1746950074331,0.06409066,2474.5,2474.0,4.32241583]
[1746950074752,8.0,2474.1,2472.0,4.266]
[1746950074973,8.0,2473.8,2473.1,4.281]
[1746950075173,4.04312069,2473.4,2473.2,4.281]
[1746950075360,8.0,2473.6,2473.2,4.281]
[1746950075564,0.06498825,2473.3,2473.2,4.281]
[1746950075755,4.04291939,2473.5,2473.2,4.281]
[1746950076077,0.08793432,2473.3,2473.0,0.81623085]
[1746950076241,4.04290409,2473.5,2473.3,4.282]
[1746950076560,12.0427853,2473.6,2473.3,4.282]
[1746950076768,4.0430177,2473.4,2473.3,4.282]
[1746950078192,12.0430177,2473.4,2473.3,4.282]
[1746950078485,4.04383517,2472.9,2472.8,13.331]
[1746950078654,12.04383517,2472.9,2472.8,13.331]
[1746950078856,8.0,2472.6,2471.8,13.333]
[1746950079177,4.241,2472.5,2471.9,0.04044781]
[1746950079495,8.0,2472.6,2472.0,0.7758]
[1746950079686,4.241,2472.8,2472.1,4.283]
[1746950080148,4.04427571,2472.7,2472.2,0.04044744]
[1746950080352,8.28504926,2472.8,2472.2,0.04044327]
[1746950080568,4.04404926,2472.8,2472.2,1.8838676]
[1746950080752,8.0,2472.9,2472.2,1.84342433]
[1746950080953,4.0444756,2472.6,2472.2,1.84342433]
[1746950081259,4.0439987,2472.8,2472.2,1.84342433]
[1746950081459,4.0439987,2472.8,2472.3,0.61264243]
[1746950081790,12.04388537,2472.9,2472.3,0.61264243]
[1746950082088,8.0,2472.9,2472.3,0.61264243]
[1746950082252,8.0,2472.9,2472.1,4.283]
[1746950082689,8.0,2472.9,2472.1,4.32344764]
[1746950082889,4.0439987,2472.8,2472.1,4.32344764]
[1746950083265,12.237,2473.1,2472.1,4.283]
[1746950083477,4.235,2473.1,2472.2,1.83938]
[1746950083684,4.04370888,2473.0,2472.3,0.0404401]
[1746950083881,12.04346357,2473.2,2472.3,0.0404401]
[1746950083882,8.0,2473.2,2472.3,0.0404401]
[1746950084059,8.0,2473.2,2472.4,0.7908]
[1746950084260,4.04379014,2473.0,2472.5,4.283]
[1746950084676,8.0,2473.2,2472.6,0.04043814]
[1746950084992,4.232,2473.4,2472.6,0.04043814]
[1746950085160,4.28802405,2473.7,2472.7,0.7908]
[1746950085360,4.04327144,2473.3,2472.7,0.7908]
[1746950085591,4.04308384,2473.4,2472.7,0.7908]
[1746950085798,4.04330933,2473.3,2472.7,0.7908]
[1746950086001,4.231,2473.6,2472.7,1.348918]
[1746950086160,4.28802405,2473.7,2472.7,1.348918]
[1746950086361,8.27280128,2473.6,2472.8,0.04043175]
[1746950086664,8.51702405,2473.7,2472.8,0.04043175]
[1746950086868,8.51602405,2473.7,2472.8,0.04043175]
[1746950087065,4.0428104,2473.6,2472.8,0.04043175]
[1746950087476,4.04250711,2473.8,2472.9,0.55]
[1746950087676,8.26929768,2473.9,2473.0,0.04042768]
[1746950087902,4.04238052,2473.8,2473.1,0.8219]
[1746950088278,0.8123,2474.4,2473.2,0.04042381]
[1746950088469,4.04187461,2474.1,2473.4,0.8219]
[1746950088665,8.0,2474.4,2473.5,0.04042126]
[1746950088913,4.04206667,2474.0,2473.4,0.8219]
[1746950089079,4.04185545,2474.2,2473.4,0.8219]
[1746950089410,4.28802405,2474.5,2473.4,0.8219]
[1746950089411,8.0,2474.4,2473.4,0.8219]
[1746950089567,16.26444574,2474.4,2473.4,0.8219]
[1746950089772,4.04233846,2473.9,2473.4,0.8219]
[1746950089971,4.04171045,2474.2,2473.4,0.8219]
[1746950090208,4.04279358,2473.6,2473.4,0.8219]
[1746950090377,4.04269081,2473.6,2473.5,4.225]
[1746950090973,4.0425738,2473.7,2473.5,4.225]
[1746950091174,4.04269081,2473.6,2473.5,4.225]
[1746950091700,5.10032405,2474.1,2473.5,4.225]
[1746950091908,8.0,2473.9,2473.5,4.225]
[1746950092205,4.04203718,2474.0,2473.5,4.225]
[1746950092381,4.218,2474.1,2473.6,0.84892339]
[1746950092579,4.0421229,2474.0,2473.6,0.84892339]
[1746950092784,8.25993941,2474.1,2473.6,0.84892339]
[1746950093611,4.04204256,2474.0,2473.6,0.84892339]
[1746950093836,8.25993488,2474.1,2473.6,0.84892339]
[1746950094132,4.214,2475.1,2473.8,0.8085]
[1746950094297,8.0,2474.8,2473.8,0.8085]
[1746950094500,0.8119,2474.6,2473.8,0.8085]
[1746950094721,4.04203385,2474.1,2473.8,0.8085]
[1746950095097,4.04202543,2474.1,2473.8,0.8085]
[1746950095521,4.04207012,2474.0,2473.8,0.8085]
[1746950095719,4.04233945,2473.9,2473.8,4.225]
[1746950095922,4.04209032,2474.0,2473.8,4.225]
[1746950096110,4.07058886,2473.9,2473.8,4.225]
[1746950096309,0.02836496,2473.9,2473.8,4.225]
[1746950097638,4.04182411,2474.2,2473.8,4.225]
[1746950097938,4.04188778,2474.1,2473.8,4.225]
[1746950098236,0.0845457,2474.1,2473.8,4.225]
[1746950098435,4.12647307,2474.1,2473.8,4.225]
[1746950098731,4.04206668,2474.0,2473.8,4.225]
[1746950098939,0.08472787,2473.9,2473.8,4.225]
[1746950099542,4.04095231,2474.7,2473.8,6.0187]
[1746950099727,0.11309283,2473.9,2473.8,6.0187]
[1746950100438,4.04041555,2475.0,2474.1,0.55]
[1746950100617,4.04085654,2474.8,2474.0,0.8212]
[1746950100935,4.04105725,2474.6,2474.0,0.8212]
[1746950101125,4.04128253,2474.5,2474.0,0.8212]
[1746950101526,4.04111365,2474.6,2474.0,0.8212]
[1746950101903,4.04110695,2474.6,2474.0,0.8212]
[1746950103340,0.02993316,2474.5,2474.0,0.8212]
[1746950103544,0.02993316,2474.5,2474.1,0.04041333]
[1746950103841,12.195,2474.8,2474.1,0.04041333]
[1746950104032,0.11394435,2474.4,2474.0,0.8212]
[1746950104343,0.08436356,2474.3,2474.0,0.8212]
[1746950105249,4.04083879,2474.8,2474.1,0.04041804]
[1746950105449,0.08445463,2474.2,2474.0,0.8212]
[1746950105746,4.04071242,2474.9,2474.0,0.8212]
[1746950105944,8.63804499,2475.1,2474.0,1.38082]
[1746950106106,4.04133263,2474.5,2474.0,0.8212]
[1746950106308,0.0842725,2474.4,2474.0,0.8212]
[1746950107016,0.02941051,2474.3,2474.1,4.224]
[1746950107412,0.02941051,2474.3,2474.1,4.26441357]
[1746950107629,0.02941051,2474.3,2474.1,4.224]
[1746950107949,8.22874697,2474.8,2474.2,0.50452]
[1746950108450,4.188,2474.8,2474.2,0.50452]
[1746950108651,8.22873479,2474.8,2474.2,0.50452]
[1746950108945,4.04058117,2474.9,2474.2,0.50452]
[1746950109125,4.04089384,2474.7,2474.1,4.224]
[1746950109324,4.04101276,2474.7,2474.2,0.04041151]
[1746950109530,4.04101276,2474.7,2474.1,4.224]
[1746950109829,4.04094143,2474.7,2474.1,4.26441262]
[1746950110224,4.0411395,2474.6,2474.1,4.26441262]
[1746950110425,4.13870992,2474.8,2474.1,4.26441262]
[1746950110643,4.04140546,2474.4,2474.1,4.224]
[1746950110816,4.13870992,2474.8,2474.1,4.224]
[1746950110817,4.13870992,2474.5,2474.1,4.224]
[1746950111016,4.04171045,2474.2,2474.1,4.224]
[1746950113037,4.04212792,2474.0,2473.7,0.8058]
[1746950113237,4.04187381,2474.1,2473.8,4.224]
[1746950113439,0.833,2474.8,2473.9,0.7721]
[1746950113620,4.04107821,2474.6,2474.0,0.04042216]
[1746950114015,0.08593465,2474.5,2474.0,0.04042216]
[1746950114222,4.04140114,2474.4,2473.9,0.7721]
[1746950114423,4.04129291,2474.5,2474.0,0.04041549]
[1746950114626,0.08611676,2474.3,2474.0,0.04041549]
[1746950114830,4.04164764,2474.3,2473.9,0.7721]
[1746950115053,0.08620783,2474.2,2473.9,0.7721]
[1746950115251,0.08620783,2474.2,2474.0,0.04041585]
[1746950115443,4.34762184,2475.1,2474.1,0.7721]
[1746950115614,4.04028677,2475.1,2474.2,0.04040815]
[1746950115820,0.30820045,2475.0,2474.2,0.04040815]
[1746950116015,4.34864593,2475.0,2474.2,0.04040815]